bitfinex/quotes_BTCUSD_20260311
["timestamp","ask_amount","ask_price","bid_price","bid_amount"]
[1773259242832,0.00022001,70670.0,70652.0,0.08704513]
[1773259244212,0.00022001,70670.0,70651.0,0.0707704]
[1773259244410,0.07097155,70670.0,70650.0,0.07077084]
[1773259244789,0.07097155,70670.0,70644.0,0.07077641]
[1773259245585,0.07097155,70670.0,70644.0,0.15782154]
[1773259245907,0.07097155,70670.0,70645.0,0.08704513]
[1773259246111,0.07197155,70670.0,70645.0,0.08704513]
[1773259246578,0.07097155,70670.0,70645.0,0.08704513]
[1773259247406,0.07097155,70670.0,70646.0,0.07077541]
[1773259247611,0.07097155,70670.0,70647.0,0.08704513]
[1773259248560,0.07197155,70670.0,70647.0,0.08704513]
[1773259249703,0.07197155,70670.0,70648.0,0.07077341]
[1773259250121,0.07297155,70670.0,70648.0,0.07077341]
[1773259250249,0.21283736,70670.0,70648.0,0.07077341]
[1773259250455,0.14086581,70669.0,70645.0,0.0003]
[1773259250671,0.07197155,70670.0,70645.0,0.000249]
[1773259250672,0.233972,70667.0,70645.0,0.000249]
[1773259250889,0.14086581,70666.0,70646.0,0.08704513]
[1773259251104,0.14086581,70669.0,70646.0,0.08704513]
[1773259251299,0.14086581,70668.0,70646.0,0.08704513]
[1773259251500,0.14086581,70667.0,70646.0,0.08704513]
[1773259251654,0.14086581,70666.0,70646.0,0.08704513]
[1773259251850,0.07075738,70664.0,70646.0,0.07077457]
[1773259252086,0.21162319,70664.0,70646.0,0.07077457]
[1773259253192,0.14086581,70663.0,70646.0,0.07077457]
[1773259253997,0.07075938,70662.0,70644.0,0.07077541]
[1773259254307,0.14086581,70661.0,70644.0,0.07077541]
[1773259255079,0.14086581,70660.0,70644.0,0.07077541]
[1773259255273,0.14086581,70659.0,70644.0,0.07077541]
[1773259255500,0.14086581,70661.0,70644.0,0.07088682]
[1773259255674,0.14120289,70660.0,70644.0,0.07088682]
[1773259255873,0.14120289,70661.0,70644.0,0.07088682]
[1773259256095,0.07076239,70659.0,70644.0,0.08715654]
[1773259256316,0.21196528,70659.0,70644.0,0.08715654]
[1773259256827,0.14120289,70659.0,70644.0,0.08715654]
[1773259257226,0.14220289,70659.0,70644.0,0.08715654]
[1773259257522,0.14120289,70659.0,70644.0,0.08715654]
[1773259258104,0.21196628,70658.0,70644.0,0.00011141]
[1773259258305,0.14120289,70657.0,70639.0,0.15782755]
[1773259258508,0.07076339,70658.0,70639.0,4.728e-05]
[1773259258509,0.14120289,70656.0,70639.0,4.728e-05]
[1773259258712,0.14120289,70655.0,70639.0,4.728e-05]
[1773259258883,0.14120289,70654.0,70639.0,4.728e-05]
[1773259259087,0.14120289,70653.0,70637.0,1e-08]
[1773259259279,0.14120289,70652.0,70637.0,0.00011151]
[1773259259482,0.07176339,70658.0,70637.0,0.00011151]
[1773259259483,0.14120289,70651.0,70637.0,0.00011151]
[1773259259699,0.14120289,70650.0,70637.0,0.00011151]
[1773259259929,0.14120289,70649.0,70637.0,0.00011151]
[1773259260129,0.2119763,70648.0,70637.0,0.00011151]
[1773259260334,0.14120289,70647.0,70630.0,1e-08]
[1773259260483,0.14120289,70647.0,70620.0,1e-08]
[1773259260484,0.12624985,70640.0,70620.0,1e-08]
[1773259260714,0.14120289,70639.0,70613.0,0.07080832]
[1773259260913,0.14120289,70638.0,70613.0,0.07080832]
[1773259261135,0.14120289,70637.0,70613.0,0.07080832]
[1773259261337,0.323411,70643.0,70612.0,0.15075204]
[1773259261538,0.14120289,70642.0,70612.0,0.07994355]
[1773259261761,0.14120289,70641.0,70612.0,0.07994355]
[1773259261950,0.14120289,70641.0,70598.0,0.07082299]
[1773259261951,0.31955009,70638.0,70602.0,0.08349434]
[1773259262133,0.12624985,70630.0,70602.0,0.15431346]
[1773259262319,0.16988,70629.0,70602.0,0.15431346]
[1773259262518,0.14120289,70628.0,70602.0,0.15431346]
[1773259262842,0.14120289,70628.0,70602.0,0.15458606]
[1773259263015,0.13435637,70628.0,70602.0,0.08376694]
[1773259263423,0.0384,70619.0,70581.0,0.0002888]
[1773259263620,0.0384,70615.0,70584.0,0.04174717]
[1773259263844,0.0384,70615.0,70581.0,0.0002888]
[1773259263845,0.0384,70609.0,70581.0,0.0002888]
[1773259264063,0.0708145,70607.0,70581.0,0.0002888]
[1773259264264,0.01325451,70606.0,70581.0,0.0002888]
[1773259264502,0.13628,70605.0,70581.0,0.0002888]
[1773259264695,0.01320355,70604.0,70581.0,0.0006608]
[1773259266056,0.07081852,70603.0,70581.0,0.0006608]
[1773259266267,0.0384,70597.0,70565.0,0.04203597]
[1773259266467,0.0384,70593.0,70565.0,0.0002888]
[1773259266664,0.0384,70591.0,70565.0,0.0002888]
[1773259266877,0.01296339,70590.0,70565.0,0.0002888]
[1773259267282,0.00144,70589.0,70565.0,0.31630013]
[1773259267503,0.00144,70589.0,70559.0,0.04174717]
[1773259267504,0.00144,70589.0,70531.0,0.09967619]
[1773259267505,0.0384,70577.0,70531.0,0.09967619]
[1773259267707,0.323932,70568.0,70535.0,0.01043679]
[1773259268044,0.00725669,70565.0,70535.0,0.01043679]
[1773259268203,0.01421415,70564.0,70537.0,0.01043679]
[1773259268930,0.07085084,70571.0,70537.0,0.01043679]
[1773259268931,0.00144,70563.0,70541.0,0.01043679]
[1773259269105,0.01407643,70562.0,70541.0,0.01043679]
[1773259269272,0.01405372,70561.0,70541.0,0.01043679]
[1773259270382,0.01390914,70560.0,70543.0,0.01043679]
[1773259270628,0.00144,70559.0,70543.0,0.01043679]
[1773259270883,0.01246914,70560.0,70543.0,0.01043679]
[1773259271071,0.00144,70558.0,70543.0,0.01043679]
[1773259271947,0.00144,70558.0,70544.0,0.01043679]
[1773259272325,0.00144,70558.0,70546.0,0.01043679]
[1773259273356,0.01212277,70570.0,70547.0,0.01043679]
[1773259273556,0.00144,70569.0,70547.0,0.01043679]
[1773259273880,0.01212277,70570.0,70547.0,0.01043679]
[1773259274085,0.00144,70569.0,70547.0,0.01043679]
[1773259274287,0.001,70558.0,70547.0,0.01043679]
[1773259274468,0.00244,70558.0,70549.0,0.01043679]
[1773259274677,0.00144,70558.0,70549.0,0.01043679]
[1773259275360,0.00144,70558.0,70557.0,0.01057852]
[1773259275856,0.00144,70558.0,70557.0,0.00014173]
[1773259277651,0.00244,70558.0,70557.0,0.00014173]
[1773259277852,0.00244,70558.0,70549.0,0.5813093]
[1773259277853,0.00244,70558.0,70549.0,0.5]
[1773259278256,0.0733038,70558.0,70549.0,0.41138029]
[1773259278437,0.00244,70558.0,70549.0,0.35776507]
[1773259278581,0.07230408,70558.0,70549.0,0.35776507]
[1773259278988,0.07230408,70558.0,70549.0,0.30141158]
[1773259278989,0.07330408,70558.0,70549.0,0.30141158]
[1773259279186,0.07330408,70558.0,70549.0,0.02797587]
[1773259279392,0.07430408,70558.0,70549.0,0.02797587]
[1773259280072,0.00244,70558.0,70549.0,0.03841266]
[1773259280270,0.01160724,70557.0,70549.0,0.03841266]
[1773259280685,0.01160724,70557.0,70549.0,0.02797587]
[1773259281095,0.08247202,70557.0,70549.0,0.01641541]
[1773259281296,0.08247208,70557.0,70549.0,0.01641541]
[1773259281497,0.01160724,70557.0,70549.0,0.01641541]
[1773259281695,0.01260724,70557.0,70549.0,0.01641541]
[1773259282120,0.00144,70556.0,70550.0,0.01043679]
[1773259282320,0.00144,70555.0,70550.0,0.01043679]
[1773259282534,0.01150756,70568.0,70552.0,0.01043679]
[1773259282535,0.00144,70556.0,70552.0,0.01043679]
[1773259282731,0.00144,70557.0,70552.0,0.01043679]
[1773259282937,0.001,70557.0,70552.0,0.01043679]
[1773259283146,0.00144,70557.0,70552.0,0.01043679]
[1773259283394,0.00144,70562.0,70552.0,0.01043679]
[1773259283726,0.42310291,70627.0,70552.0,0.01043679]
[1773259283727,0.00144,70568.0,70552.0,0.01043679]
[1773259284646,0.00144,70569.0,70554.0,0.01043679]
[1773259285864,0.00144,70569.0,70554.0,0.01143679]
[1773259286513,0.00144,70569.0,70555.0,0.01043679]
[1773259286666,0.00144,70569.0,70557.0,0.01043679]
[1773259287068,0.00144,70573.0,70557.0,0.01043679]
[1773259287740,0.00144,70573.0,70557.0,0.5]
[1773259287901,0.00144,70573.0,70558.0,0.01043679]
[1773259288849,0.00144,70573.0,70562.0,0.01043679]
[1773259290103,0.00144,70573.0,70562.0,0.0105263]
[1773259290523,0.00166001,70573.0,70562.0,0.0105263]
[1773259290730,0.00166001,70573.0,70564.0,0.01043679]
[1773259292035,0.00144,70576.0,70564.0,0.01043679]
[1773259292375,0.00144,70580.0,70564.0,0.01043679]
[1773259292579,0.00144,70580.0,70564.0,0.01187679]
[1773259293012,0.00144,70580.0,70566.0,0.01043679]
[1773259293547,0.00144,70580.0,70566.0,0.5]
[1773259293820,0.00144,70580.0,70567.0,0.01043679]
[1773259294320,0.00144,70580.0,70566.0,0.5]
[1773259294504,0.07228196,70580.0,70566.0,0.5]
[1773259295172,0.07228196,70580.0,70567.0,0.001]
[1773259295522,0.07228196,70580.0,70566.0,0.57085551]
[1773259295722,0.07428196,70580.0,70566.0,0.57085551]
[1773259296123,0.07428196,70580.0,70566.0,0.5]
[1773259296333,0.07328196,70580.0,70566.0,0.5]
[1773259296684,0.00244,70580.0,70566.0,0.57085564]
[1773259296885,0.00244,70580.0,70567.0,0.01043679]
[1773259297088,0.00144,70580.0,70569.0,0.01043679]
[1773259297302,0.0722818,70580.0,70568.0,0.07085364]
[1773259297517,0.00244,70580.0,70568.0,0.07085364]
[1773259297721,0.00344,70580.0,70568.0,0.07085364]
[1773259297919,0.00144,70580.0,70568.0,0.07085364]
[1773259298081,0.00144,70580.0,70568.0,0.58129043]
[1773259298281,0.00266001,70580.0,70568.0,0.58129043]
[1773259298679,0.00266001,70580.0,70568.0,0.5]
[1773259299216,0.00166001,70580.0,70569.0,0.07085264]
[1773259299593,0.00166001,70580.0,70569.0,0.08128943]
[1773259300595,0.00266001,70580.0,70569.0,0.08128943]
[1773259301156,0.00166001,70580.0,70569.0,0.08128943]
[1773259301563,0.00266001,70580.0,70569.0,0.08128943]
[1773259301739,0.07350188,70580.0,70569.0,0.08128943]
[1773259301910,0.00166001,70580.0,70569.0,0.08128943]
[1773259302105,0.00266001,70580.0,70569.0,0.08128943]
[1773259303423,0.00266001,70580.0,70570.0,0.01043679]
[1773259304046,0.00166001,70580.0,70570.0,0.01043679]
[1773259304570,0.00266001,70580.0,70570.0,0.51043679]
[1773259304717,0.00166001,70580.0,70570.0,0.51043679]
[1773259304919,0.00166001,70580.0,70570.0,0.5]
[1773259305125,0.00266001,70580.0,70570.0,0.5]
[1773259305324,0.00266001,70580.0,70571.0,0.07085063]
[1773259306162,0.00266001,70580.0,70571.0,0.57085063]
[1773259306564,0.00166001,70580.0,70571.0,0.57085063]
[1773259307461,0.00266001,70580.0,70571.0,0.57085063]
[1773259307683,0.00266001,70580.0,70571.0,1.07085063]
[1773259308587,0.00144,70583.0,70572.0,0.01043679]
[1773259308786,0.07083005,70592.0,70572.0,0.01043679]
[1773259308987,0.00144,70587.0,70572.0,0.01043679]
[1773259309134,0.00144,70587.0,70571.0,1.07085016]
[1773259309912,0.07083557,70586.0,70571.0,1.07085016]
[1773259310882,0.001,70580.0,70571.0,1.07085016]
[1773259311063,0.00144,70579.0,70571.0,1.07085016]
[1773259311290,0.00144,70579.0,70568.0,0.5]
[1773259311496,0.00144,70579.0,70562.0,8.951e-05]
[1773259311701,0.00144,70579.0,70558.0,0.0710635]
[1773259311702,0.0708436,70578.0,70558.0,0.0710635]
[1773259311922,0.0708436,70578.0,70558.0,0.07117508]
[1773259312733,0.0708436,70578.0,70571.0,0.0002]
[1773259312897,0.0708436,70578.0,70558.0,0.07117508]
[1773259313318,0.0708436,70578.0,70563.0,0.0002]
[1773259313708,0.0718436,70578.0,70563.0,0.0002]
[1773259313886,0.0708436,70578.0,70563.0,0.0002]
[1773259314288,0.0718436,70578.0,70563.0,0.0002]
[1773259314591,0.0708436,70578.0,70563.0,0.0002]
[1773259314815,0.0728436,70578.0,70563.0,0.0002]
[1773259315217,0.0718436,70578.0,70563.0,0.0002]
[1773259315617,0.0728436,70578.0,70563.0,0.0002]
[1773259315818,0.002,70578.0,70564.0,0.01043679]
[1773259316020,0.07184368,70578.0,70564.0,0.01043679]
[1773259316420,0.07284368,70578.0,70564.0,0.01043679]
[1773259316621,0.07184368,70578.0,70564.0,0.01043679]
[1773259316836,0.07084368,70578.0,70564.0,0.01043679]
[1773259317001,0.07184368,70578.0,70564.0,0.01043679]
[1773259317201,0.002,70578.0,70564.0,0.01043679]
[1773259317405,0.07284366,70578.0,70564.0,0.01043679]
[1773259317645,0.07084366,70578.0,70564.0,0.01043679]
[1773259318050,0.07284366,70578.0,70565.0,0.07085665]
[1773259318450,0.07184366,70578.0,70565.0,0.07085665]
[1773259318882,0.07284366,70578.0,70565.0,0.07085665]
[1773259319077,0.07184366,70578.0,70565.0,0.08129344]
[1773259319726,0.00144,70577.0,70566.0,0.01043679]
[1773259320052,0.00144,70577.0,70567.0,0.07085464]
[1773259321264,0.06108835,70576.0,70567.0,0.07085464]
[1773259321463,0.06108835,70576.0,70564.0,0.07105665]
[1773259321608,0.06108835,70576.0,70564.0,0.0002]
[1773259322599,0.06108835,70574.0,70564.0,0.0002]
[1773259323237,0.06108835,70574.0,70530.0,0.01]
[1773259323415,0.21230276,70575.0,70530.0,0.01]
[1773259323416,0.06108835,70569.0,70530.0,0.01]
[1773259323610,0.06108835,70567.0,70538.0,0.07088373]
[1773259323811,0.06108835,70565.0,70538.0,0.07088373]
[1773259324010,0.06108835,70563.0,70538.0,0.07088373]
[1773259324215,0.06108835,70561.0,70539.0,0.07088239]
[1773259324417,0.06108835,70558.0,70539.0,0.07088239]
[1773259324612,0.06108835,70556.0,70541.0,0.07108036]
[1773259324839,0.00144,70555.0,70541.0,0.07108036]
[1773259325838,0.00144,70554.0,70541.0,0.07108036]
[1773259326182,0.00144,70553.0,70541.0,0.07108036]
[1773259326519,0.00144,70552.0,70541.0,0.07108036]
[1773259326683,0.06108835,70554.0,70541.0,0.07108036]
[1773259326684,0.00144,70551.0,70541.0,0.07108036]
[1773259327249,0.00144,70551.0,70541.0,0.07208036]
[1773259328371,0.00144,70551.0,70543.0,0.00014176]
[1773259330667,0.07086464,70559.0,70543.0,0.00014176]
[1773259330668,0.00144,70550.0,70543.0,0.00014176]
[1773259330871,0.00144,70549.0,70543.0,0.00014176]
[1773259331047,0.00144,70548.0,70543.0,0.00014176]
[1773259331279,0.00144,70547.0,70543.0,0.00014176]
[1773259331457,0.13195007,70560.0,70543.0,0.00014176]
[1773259331793,0.00144,70559.0,70543.0,0.00014176]
[1773259332356,0.06252835,70559.0,70543.0,0.00014176]
[1773259333165,0.13339104,70559.0,70543.0,0.00014176]
[1773259333361,0.07230269,70559.0,70543.0,0.00014176]
[1773259333567,0.07230269,70559.0,70538.0,0.07088076]
[1773259333568,0.06108835,70557.0,70536.0,0.0713131]
[1773259333767,0.06108835,70557.0,70536.0,0.07142477]
[1773259334030,0.06108835,70565.0,70537.0,0.03498125]
[1773259334246,0.00144,70564.0,70541.0,0.629405]
[1773259334410,0.06108835,70575.0,70541.0,0.403093]
[1773259334615,0.00144,70574.0,70541.0,0.403093]
[1773259334812,0.00144,70574.0,70543.0,0.471021]
[1773259335014,0.00144,70574.0,70544.0,0.00144]
[1773259335217,0.00144,70573.0,70544.0,0.00144]
[1773259336270,0.00144,70572.0,70544.0,0.00144]
[1773259336423,0.00144,70571.0,70544.0,0.00144]
[1773259336628,0.06108835,70580.0,70544.0,0.00144]
[1773259336629,0.00144,70570.0,70550.0,0.12655595]
[1773259336831,0.00144,70572.0,70551.0,0.07087071]
[1773259337243,0.00144,70572.0,70552.0,0.00144]
[1773259337621,0.00144,70579.0,70561.0,0.03424311]
[1773259338770,0.00011134,70579.0,70562.0,0.07085966]
[1773259339518,0.00155134,70579.0,70562.0,0.07085966]
[1773259341909,0.00155134,70579.0,70562.0,0.06636604]
[1773259342640,0.00155134,70579.0,70562.0,0.06536604]
[1773259343037,0.05958181,70577.0,70560.0,0.07086067]
[1773259343383,0.05958181,70576.0,70562.0,0.001]
[1773259344011,0.00177135,70579.0,70562.0,0.001]
[1773259345015,0.00177135,70579.0,70563.0,0.07085866]
[1773259345695,0.07261442,70579.0,70563.0,0.07085866]
[1773259345933,0.05958181,70578.0,70563.0,0.07085866]
[1773259347445,0.07084363,70578.0,70563.0,0.07085866]
[1773259347684,0.05958181,70577.0,70563.0,0.07085866]
[1773259349061,0.13042694,70577.0,70556.0,0.07086167]
[1773259349272,0.05958181,70576.0,70556.0,0.07086167]
[1773259351062,0.07261452,70579.0,70556.0,0.07086167]
[1773259351063,0.05958181,70574.0,70556.0,0.07086167]
[1773259352809,0.05958181,70574.0,70556.0,0.07186167]
[1773259352810,0.06058181,70574.0,70556.0,0.07186167]
[1773259353017,0.06040078,70574.0,70556.0,0.07186167]
[1773259353316,0.0594913,70572.0,70556.0,0.07086167]
[1773259353517,0.0594913,70570.0,70556.0,0.07086167]
[1773259354680,0.00144,70571.0,70556.0,0.07086167]
[1773259355480,0.00144,70570.0,70556.0,0.07086167]
[1773259355631,0.002,70572.0,70556.0,0.07086167]
[1773259355830,0.00144,70571.0,70556.0,0.07086167]
[1773259356032,0.00244,70571.0,70556.0,0.07086167]
[1773259356227,0.001,70570.0,70556.0,0.07086167]
[1773259356777,0.00144,70571.0,70556.0,0.07186167]
[1773259357457,0.0594913,70570.0,70556.0,0.07086167]
[1773259357981,0.0594913,70570.0,70556.0,0.07186167]
[1773259358477,0.0594913,70570.0,70556.0,0.07286167]
[1773259358679,0.0594913,70570.0,70556.0,0.07186167]
[1773259358882,0.0604913,70570.0,70556.0,0.07186167]
[1773259359049,0.0604913,70570.0,70556.0,0.07086167]
[1773259359661,0.0594913,70570.0,70556.0,0.07086167]
[1773259359864,0.0604913,70570.0,70556.0,0.07086167]
[1773259360280,0.0594913,70570.0,70556.0,0.07086167]
[1773259361711,0.0604913,70570.0,70556.0,0.07086167]
[1773259361917,0.0594913,70570.0,70556.0,0.07086167]
[1773259362265,0.0604913,70570.0,70556.0,0.07086167]
[1773259362463,0.0594913,70570.0,70556.0,0.07086167]
[1773259362760,0.001,70570.0,70556.0,0.07086167]
[1773259362965,0.1412659,70573.0,70557.0,0.0166812]
[1773259363163,0.1412659,70577.0,70557.0,0.01526391]
[1773259363363,0.001,70570.0,70557.0,0.01526391]
[1773259363614,0.00144,70576.0,70557.0,0.01526391]
[1773259363979,0.00144,70576.0,70558.0,0.07086368]
[1773259364168,0.00144,70576.0,70559.0,0.01526347]
[1773259366737,0.00144,70576.0,70560.0,0.07086167]
[1773259366882,0.00144,70576.0,70561.0,0.01526303]
[1773259367912,0.00022001,70574.0,70561.0,0.01526303]
[1773259368034,3.896e-05,70574.0,70561.0,0.01526303]
[1773259368784,3.896e-05,70574.0,70562.0,0.07085966]
[1773259368987,3.896e-05,70574.0,70563.0,0.01526259]
[1773259370153,3.896e-05,70574.0,70562.0,0.07085966]
[1773259370883,0.06003253,70574.0,70559.0,0.07086167]
[1773259373231,3.896e-05,70574.0,70559.0,0.07086167]
[1773259375659,3.896e-05,70574.0,70560.0,0.04218335]
[1773259376502,3.896e-05,70574.0,70559.0,0.07086167]
[1773259376690,0.05999357,70573.0,70559.0,0.07086167]
[1773259377492,0.05999357,70573.0,70559.0,0.07106167]
[1773259377899,0.0598125,70573.0,70559.0,0.07106167]
[1773259378522,0.0598125,70573.0,70559.0,0.07206167]
[1773259378770,0.0598125,70573.0,70560.0,0.04218335]
[1773259379696,3.896e-05,70574.0,70561.0,0.07086067]
[1773259379829,0.05994199,70574.0,70561.0,0.07086067]
[1773259380497,0.05994199,70574.0,70556.0,0.0002]
[1773259380498,0.05994199,70574.0,70544.0,0.0002]
[1773259380689,0.05990303,70570.0,70549.0,0.07087272]
[1773259380922,0.05990303,70568.0,70549.0,0.07087272]
[1773259381653,0.05990303,70566.0,70549.0,0.07087272]
[1773259381854,0.05972194,70566.0,70549.0,0.07087272]
[1773259384006,0.05981249,70564.0,70549.0,0.07087272]
[1773259384206,0.05981249,70562.0,70549.0,0.07087272]
[1773259385305,0.21212255,70565.0,70549.0,0.07087272]
[1773259385306,0.05981249,70560.0,70549.0,0.07087272]
[1773259385920,0.05963143,70560.0,70549.0,0.07087272]
[1773259388306,0.05963143,70560.0,70549.0,0.0381688]
[1773259389189,0.05972196,70559.0,70549.0,0.0381688]
[1773259390585,0.05972196,70559.0,70548.0,0.07107272]
[1773259390586,0.05972196,70557.0,70548.0,0.0002]
[1773259390904,0.05972196,70556.0,70548.0,0.0002]
[1773259391785,0.05980083,70556.0,70548.0,0.0002]
[1773259391968,0.05972196,70554.0,70548.0,0.0002]
[1773259392168,0.05972196,70554.0,70549.0,0.0002]
[1773259392655,0.05972196,70554.0,70547.0,0.0002]
[1773259392854,0.05972196,70552.0,70534.0,0.0002]
[1773259393149,0.05972196,70552.0,70535.0,0.07088642]
[1773259393859,0.05972196,70552.0,70536.0,0.07108564]
[1773259394487,0.06072196,70552.0,70536.0,0.07108564]
[1773259395099,0.05972196,70550.0,70536.0,0.0002]
[1773259395248,0.05972196,70548.0,70536.0,0.0002]
[1773259395651,0.05972196,70548.0,70536.0,0.07108499]
[1773259395870,0.05972196,70548.0,70536.0,0.0002]
[1773259396911,0.06072196,70548.0,70536.0,0.0002]
[1773259397104,0.06072196,70548.0,70536.0,0.07108546]
[1773259397268,0.05972196,70546.0,70536.0,0.07108546]
[1773259397671,0.05972196,70546.0,70536.0,0.0002]
[1773259398258,0.02706429,70546.0,70536.0,0.07108571]
[1773259398534,0.00144,70545.0,70536.0,0.07108571]
[1773259398730,0.04339312,70544.0,70536.0,0.07108571]
[1773259400535,0.04339312,70544.0,70536.0,0.07108553]
[1773259400941,0.07087813,70544.0,70536.0,0.0002]
[1773259401253,0.04339312,70544.0,70536.0,0.0012]
[1773259401474,0.04339312,70544.0,70536.0,0.0002]
[1773259401757,0.07087786,70544.0,70536.0,0.0002]
[1773259401967,0.04339312,70543.0,70536.0,0.0002]
[1773259402315,0.04339312,70543.0,70536.0,1e-08]
[1773259403737,0.07087975,70542.0,70536.0,1e-08]
[1773259403935,0.04339312,70541.0,70536.0,1e-08]
[1773259405861,0.04339312,70539.0,70536.0,1e-08]
[1773259406062,0.07088176,70540.0,70521.0,0.0002]
[1773259406063,0.04339312,70537.0,70521.0,0.0002]
[1773259406263,0.00738299,70509.0,70503.0,0.07110156]
[1773259406466,0.04222677,70531.0,70503.0,0.07110156]
[1773259406467,0.00144,70508.0,70503.0,0.07110156]
[1773259406781,0.00144,70507.0,70503.0,0.07110156]
[1773259406946,0.00144,70506.0,70503.0,0.07110156]
[1773259407346,0.00125891,70506.0,70503.0,0.07110156]
[1773259407584,0.00125891,70506.0,70503.0,0.07247347]
[1773259407938,0.00125891,70506.0,70503.0,0.07347347]
[1773259408146,0.00125891,70506.0,70503.0,0.07247347]
[1773259408602,0.0709,70522.0,70503.0,0.07347347]
[1773259408603,0.14111452,70522.0,70503.0,0.07347347]
[1773259408802,0.00144,70521.0,70510.0,0.04222677]
[1773259408986,0.02169656,70525.0,70510.0,0.04222677]
[1773259408987,0.00144,70520.0,70510.0,0.04222677]
[1773259409384,0.02169656,70525.0,70510.0,0.04222677]
[1773259409593,0.00144,70519.0,70506.0,0.00014183]
[1773259409904,0.00144,70518.0,70506.0,0.00014183]
[1773259410305,0.00144,70517.0,70506.0,0.00014183]
[1773259410507,0.00144,70516.0,70506.0,0.00014183]
[1773259410665,0.02169656,70525.0,70506.0,0.00114183]
[1773259410869,0.14111452,70528.0,70506.0,0.00114183]
[1773259411073,0.00144,70527.0,70506.0,0.00114183]
[1773259411278,0.00144,70526.0,70506.0,0.00114183]
[1773259411477,0.00144,70525.0,70506.0,0.00114183]
[1773259411701,0.14111452,70538.0,70506.0,0.00114183]
[1773259411954,0.00144,70537.0,70506.0,0.00014183]
[1773259412160,0.00144,70537.0,70506.0,0.07105778]
[1773259412781,0.01228828,70537.0,70506.0,0.07105778]
[1773259412954,0.01228828,70537.0,70506.0,0.07125778]
[1773259413547,0.01228828,70537.0,70506.0,0.07225778]
[1773259413749,0.00144,70536.0,70510.0,0.12674162]
[1773259414075,0.00144,70535.0,70512.0,0.07090991]
[1773259414752,0.00144,70535.0,70513.0,0.09934653]
[1773259416057,0.00144,70535.0,70515.0,0.07090689]
[1773259416258,0.00144,70535.0,70516.0,0.09934653]
[1773259417856,0.00144,70534.0,70516.0,0.09934653]
[1773259418297,0.00144,70534.0,70518.0,0.09873503]
[1773259419125,0.00144,70533.0,70518.0,0.09873503]
[1773259419528,0.00144,70533.0,70518.0,0.09973503]
[1773259419910,0.14111452,70537.0,70518.0,0.09873503]
[1773259420250,0.00144,70536.0,70520.0,0.09873503]
[1773259420388,0.14111452,70537.0,70520.0,0.09873503]
[1773259420596,0.00144,70538.0,70520.0,0.09873503]
[1773259420828,0.00144,70538.0,70519.0,0.07090287]
[1773259422324,0.07088478,70537.0,70517.0,0.07090287]
[1773259422523,0.07088478,70537.0,70518.0,0.09973503]
[1773259423379,0.07188478,70537.0,70518.0,0.09973503]
[1773259423591,0.07288478,70537.0,70518.0,0.09973503]
[1773259424086,0.07288478,70537.0,70515.0,0.07090683]
[1773259424501,0.07288478,70537.0,70515.0,0.17564186]
[1773259424674,0.07188478,70537.0,70516.0,0.10473503]
[1773259424874,0.07288478,70537.0,70516.0,0.10473503]
[1773259425281,0.07188478,70537.0,70516.0,0.10473503]
[1773259425483,0.00144,70536.0,70516.0,0.10473503]
[1773259426058,0.00144,70535.0,70516.0,0.10473503]
[1773259426627,0.07088779,70534.0,70517.0,0.07090488]
[1773259427198,0.0707067,70534.0,70517.0,0.07090488]
[1773259428941,0.0727067,70534.0,70517.0,0.07090488]
[1773259429813,0.0727067,70534.0,70518.0,0.10473503]
[1773259431013,0.0717067,70534.0,70518.0,0.10473503]
[1773259431310,0.0717067,70534.0,70518.0,0.17563855]
[1773259431513,0.0727067,70534.0,70518.0,0.17563855]
[1773259431805,0.0707067,70534.0,70518.0,0.10473503]
[1773259432010,0.0717067,70534.0,70518.0,0.10473503]
[1773259432222,0.0727067,70534.0,70518.0,0.10473503]
[1773259432406,0.0717067,70534.0,70518.0,0.10473503]
[1773259432609,0.14145604,70533.0,70518.0,0.10473503]
[1773259432786,0.14145604,70532.0,70518.0,0.10473503]
[1773259432998,0.14145604,70531.0,70518.0,0.10473503]
[1773259433202,0.21234785,70530.0,70518.0,0.10473503]
[1773259433536,0.14145604,70529.0,70518.0,0.10473503]
[1773259433681,0.14289604,70528.0,70518.0,0.10473503]
[1773259433884,0.14145604,70527.0,70518.0,0.10473503]
[1773259434231,0.14145604,70526.0,70518.0,0.10473503]
[1773259434382,0.14127495,70525.0,70518.0,0.10473503]
[1773259434587,0.00144,70528.0,70518.0,0.10473503]
[1773259435229,0.00144,70528.0,70517.0,0.07090433]
[1773259435429,0.00144,70528.0,70516.0,0.07090583]
[1773259436290,0.00144,70528.0,70516.0,0.17564086]
[1773259437688,0.07233441,70528.0,70516.0,0.10473503]
[1773259437839,0.07233441,70528.0,70515.0,0.07090664]
[1773259438038,0.07089483,70527.0,70511.0,0.10473503]
[1773259438981,0.07089483,70527.0,70513.0,0.10473503]
[1773259439378,0.04013916,70529.0,70513.0,0.10473503]
[1773259439580,0.00022001,70534.0,70513.0,0.10473503]
[1773259439787,0.00144,70533.0,70513.0,0.10473503]
[1773259440444,0.07110808,70534.0,70513.0,0.10473503]
[1773259440716,0.00144,70532.0,70513.0,0.10473503]
[1773259441072,0.00144,70532.0,70515.0,0.10473503]
[1773259443505,0.00144,70532.0,70517.0,0.10473503]
[1773259444200,0.00144,70531.0,70517.0,0.10473503]
[1773259444346,0.00144,70531.0,70520.0,0.04224523]
[1773259444524,0.00144,70530.0,70521.0,0.10473503]
[1773259445728,0.00144,70530.0,70523.0,0.10473503]
[1773259446190,0.00144,70529.0,70523.0,0.10473503]
[1773259446547,0.00144,70528.0,70523.0,0.10473503]
[1773259447567,0.00144,70528.0,70522.0,0.07089986]
[1773259447802,0.00144,70528.0,70522.0,0.10473503]
[1773259448368,0.00022001,70534.0,70522.0,0.10473503]
[1773259448597,0.00144,70533.0,70522.0,0.10473503]
[1773259449754,0.00144,70537.0,70529.0,0.10473503]
[1773259450288,0.00043241,70545.0,70529.0,0.10473503]
[1773259450491,0.00144,70544.0,70531.0,0.10473503]
[1773259450887,0.00043241,70545.0,70531.0,0.1048467]
[1773259451116,0.00144,70543.0,70531.0,0.1048467]
[1773259451731,0.00043241,70545.0,70533.0,0.10473503]
[1773259452043,0.00144,70542.0,70533.0,0.10473503]
[1773259452906,0.00144,70541.0,70533.0,0.10473503]
[1773259453106,0.00043241,70545.0,70533.0,0.10473503]
[1773259453446,0.00144,70541.0,70533.0,0.10473503]
[1773259453858,0.00144,70541.0,70534.0,0.07088779]
[1773259454017,0.00144,70541.0,70535.0,0.10473503]
[1773259455258,0.13476,70550.0,70535.0,0.10473503]
[1773259455259,1e-08,70546.0,70536.0,0.10473503]
[1773259455850,1e-08,70546.0,70539.0,0.10473503]
[1773259457834,1e-08,70546.0,70540.0,0.07088176]
[1773259458146,1e-08,70546.0,70541.0,0.10473503]